bitfinex/quotes_SOLUSD_20251119
["timestamp","ask_amount","ask_price","bid_price","bid_amount"]
[1763574851151,11.1428959,132.43,132.4,2.02]
[1763574851322,0.71,132.43,132.4,2.02]
[1763574851521,11.1428959,132.41,132.4,0.2]
[1763574852154,64.89051946,132.44,132.4,0.2]
[1763574852345,18.69519557,132.41,132.4,0.2]
[1763574853044,14.69080225,132.41,132.4,0.2]
[1763574853246,34.28155143,132.41,132.35,0.7]
[1763574853430,7.13850258,132.37,132.36,1.82]
[1763574853751,7.13850258,132.38,132.36,1.82]
[1763574854127,7.13850258,132.38,132.36,2.52]
[1763574854328,26.43704207,132.39,132.36,2.52]
[1763574854528,33.57554465,132.39,132.36,2.52]
[1763574854746,26.43704207,132.39,132.36,1.82]
[1763574854946,0.71,132.42,132.38,7.13850258]
[1763574854947,7.13850258,132.42,132.38,7.13850258]
[1763574855455,14.68966168,132.43,132.39,7.83850258]
[1763574855770,7.55075336,132.44,132.41,7.13850258]
[1763574856128,7.55017368,132.45,132.42,0.7]
[1763574856437,7.55017368,132.45,132.42,7.83850258]
[1763574856630,7.13850258,132.46,132.42,7.83850258]
[1763574856835,7.54963875,132.46,132.43,0.7]
[1763574857032,7.54830917,132.48,132.44,1.82]
[1763574857259,7.13850258,132.47,132.44,1.82]
[1763574857433,7.13850258,132.46,132.44,1.82]
[1763574857629,7.13850258,132.45,132.44,1.82]
[1763574858048,7.13850258,132.45,132.41,0.7]
[1763574858265,7.13850258,132.45,132.42,1.82]
[1763574858550,33.56172674,132.46,132.42,1.82]
[1763574858751,33.56172674,132.46,132.42,2.52]
[1763574859173,7.13850258,132.46,132.42,1.82]
[1763574859354,7.13850258,132.47,132.43,7.83850258]
[1763574859563,7.13850258,132.47,132.43,0.7]
[1763574859867,7.13850258,132.47,132.44,0.69]
[1763574860376,51.67854469,132.48,132.44,0.69]
[1763574860564,7.13850258,132.47,132.44,0.69]
[1763574861147,7.13850258,132.45,132.42,2.51]
[1763574861364,7.13850258,132.46,132.42,2.51]
[1763574861751,7.13850258,132.46,132.43,0.69]
[1763574861974,7.13850258,132.47,132.43,7.82850258]
[1763574862166,7.13850258,132.48,132.44,7.13850258]
[1763574862362,7.54838198,132.48,132.45,0.69]
[1763574862562,7.54838198,132.48,132.46,1.82]
[1763574862979,7.54838198,132.48,132.46,2.51]
[1763574863198,7.54795071,132.49,132.47,0.69]
[1763574863396,7.13850258,132.51,132.47,0.69]
[1763574863717,10.47882769,132.55,132.47,0.69]
[1763574863718,7.13850258,132.55,132.5,7.13850258]
[1763574864009,0.69,132.56,132.51,2.51]
[1763574864010,7.13850258,132.53,132.51,2.51]
[1763574864177,7.13850258,132.52,132.48,7.82850258]
[1763574864367,26.41110774,132.52,132.48,0.69]
[1763574864584,33.54961032,132.52,132.48,0.69]
[1763574864801,33.54961032,132.52,132.49,1.82]
[1763574864802,34.22961032,132.52,132.49,1.82]
[1763574865626,34.22961032,132.52,132.46,18.12096]
[1763574865627,7.81850258,132.51,132.5,1.82]
[1763574866017,7.13850258,132.51,132.5,1.82]
[1763574866179,7.81850258,132.51,132.5,1.82]
[1763574866677,14.68510283,132.51,132.5,1.82]
[1763574867000,34.23160347,132.51,132.46,7.83850258]
[1763574867294,34.23160347,132.51,132.47,2.52]
[1763574867498,7.13850258,132.48,132.41,10.48882769]
[1763574867693,7.13850258,132.48,132.4,0.755287]
[1763574867694,7.13850258,132.43,132.4,1.82]
[1763574867896,7.13850258,132.44,132.41,0.7]
[1763574868123,0.68,132.47,132.38,0.7]
[1763574868124,7.13850258,132.43,132.38,0.7]
[1763574868277,7.13850258,132.41,132.39,1.82]
[1763574868478,7.13850258,132.43,132.39,1.82]
[1763574868703,7.55172934,132.42,132.39,2.52]
[1763574868905,18.12096,132.45,132.4,0.7]
[1763574869073,7.13850258,132.43,132.4,0.7]
[1763574869272,7.13850258,132.41,132.39,1.82]
[1763574869691,7.13850258,132.41,132.39,2.52]
[1763574870113,7.13850258,132.41,132.39,1.82]
[1763574870309,7.13850258,132.42,132.39,2.52]
[1763574870536,7.13850258,132.42,132.4,0.7]
[1763574870685,7.13850258,132.42,132.37,11.60882769]
[1763574870686,7.13850258,132.41,132.37,11.60882769]
[1763574870886,7.13850258,132.4,132.38,0.7]
[1763574871085,7.13850258,132.41,132.38,0.7]
[1763574871291,7.13850258,132.39,132.35,0.7]
[1763574871512,7.13850258,132.39,132.36,2.52]
[1763574872114,7.13850258,132.39,132.36,1.82]
[1763574872409,7.13850258,132.39,132.37,0.7]
[1763574872617,7.55401117,132.38,132.37,0.7]
[1763574872996,33.57754169,132.38,132.36,1.82]
[1763574873316,26.43903911,132.38,132.36,1.82]
[1763574873615,26.43903911,132.38,132.33,9.78882769]
[1763574873616,7.81850258,132.37,132.31,0.7]
[1763574873918,7.13850258,132.33,132.3,22.92995714]
[1763574874220,7.13850258,132.33,132.29,7.83850258]
[1763574874221,7.13850258,132.34,132.31,1.82]
[1763574874510,7.13850258,132.32,132.31,1.82]
[1763574874710,7.55743651,132.32,132.31,1.82]
[1763574874925,14.69593909,132.32,132.31,1.82]
[1763574875285,7.13850258,132.32,132.31,1.82]
[1763574875512,25.67690135,132.35,132.31,2.52]
[1763574875703,7.13850258,132.34,132.31,2.52]
[1763574876011,14.69444393,132.35,132.31,1.82]
[1763574876328,7.13850258,132.34,132.32,0.7]
[1763574876690,7.55686541,132.33,132.31,1.82]
[1763574876895,7.55686541,132.33,132.31,2.52]
[1763574877230,14.69502384,132.34,132.28,18.32096]
[1763574877394,7.13850258,132.3,132.28,2.72]
[1763574878008,7.13850258,132.29,132.28,2.02]
[1763574878397,7.13850258,132.29,132.28,0.2]
[1763574878623,26.4590263,132.28,132.25,0.2]
[1763574878812,7.13850258,132.26,132.25,2.02]
[1763574879304,7.13850258,132.26,132.25,0.2]
[1763574879492,7.81850258,132.26,132.25,1e-08]
[1763574880590,18.12096,132.26,132.25,1e-08]
[1763574880819,7.13850258,132.26,132.25,1e-08]
[1763574881019,7.13850258,132.28,132.25,0.70000001]
[1763574881526,0.68,132.32,132.25,7.83850259]
[1763574881706,7.13850258,132.33,132.28,7.13850258]
[1763574882028,7.13850258,132.31,132.26,7.83850258]
[1763574882201,7.13850258,132.3,132.29,1.82]
[1763574882701,14.69708156,132.3,132.29,1.82]
[1763574882914,1.99999999,132.4,132.29,2.52]
[1763574883162,7.13850258,132.31,132.29,2.52]
[1763574883294,7.13850258,132.32,132.29,2.52]
[1763574883701,18.12096,132.34,132.29,2.52]
[1763574883702,7.13850258,132.31,132.29,1.82]
[1763574883922,7.13850258,132.31,132.29,2.52]
[1763574884517,7.13850258,132.3,132.29,1.82]
[1763574884727,14.69708156,132.3,132.29,1.82]
[1763574885028,8.23857898,132.3,132.29,1.82]
[1763574885216,14.69708156,132.3,132.29,1.82]
[1763574886817,14.69708156,132.3,132.26,1.82]
[1763574887019,65.69290416,132.34,132.27,0.7]
[1763574887020,27.90978769,132.34,132.27,0.7]
[1763574887321,25.67733784,132.34,132.28,7.13850258]
[1763574887529,14.69488042,132.34,132.3,7.13850258]
[1763574887725,14.69488042,132.34,132.31,1.82]
[1763574888119,7.13850258,132.34,132.31,2.52]
[1763574888503,7.13850258,132.33,132.31,1.82]
[1763574888702,7.13850258,132.33,132.3,1.82]
[1763574888907,14.6957119,132.33,132.3,2.52]
[1763574889114,7.13850258,132.32,132.3,1.82]
[1763574889436,7.13850258,132.32,132.27,0.7]
[1763574889437,7.13850258,132.31,132.29,1.82]
[1763574889600,7.13850258,132.3,132.28,1.82]
[1763574890302,7.13850258,132.29,132.28,1.82]
[1763574890503,7.13850258,132.3,132.28,1.82]
[1763574890829,7.55915035,132.29,132.28,1.82]
[1763574891136,14.6972543,132.3,132.28,1.82]
[1763574891308,7.13850258,132.3,132.28,2.53]
[1763574891506,7.13850258,132.31,132.28,2.53]
[1763574891701,7.13850258,132.3,132.28,1.82]
[1763574892122,7.84850258,132.29,132.25,1e-08]
[1763574892324,7.13850258,132.26,132.25,1e-08]
[1763574892530,18.12096,132.27,132.25,1e-08]
[1763574892718,7.84850258,132.26,132.25,1e-08]
[1763574893012,14.69936754,132.26,132.25,1e-08]
[1763574893322,15.40936754,132.26,132.25,1e-08]
[1763574894045,15.40936754,132.26,132.23,1e-08]
[1763574894046,18.12096,132.24,132.23,1e-08]
[1763574894338,25.25946258,132.24,132.23,1e-08]
[1763574894513,25.96946258,132.24,132.23,1e-08]
[1763574894708,25.25946258,132.24,132.23,1e-08]
[1763574894906,33.53147104,132.24,132.23,1e-08]
[1763574895141,25.68296846,132.24,132.23,1e-08]
[1763574895537,32.82147104,132.24,132.23,1e-08]
[1763574896837,14.70051104,132.24,132.23,1e-08]
[1763574898318,0.71,132.24,132.23,1e-08]
[1763574898518,18.12096,132.24,132.23,1e-08]
[1763574898722,18.83096,132.24,132.23,1e-08]
[1763574898923,33.53147104,132.24,132.23,1e-08]
[1763574899308,40.66997362,132.24,132.23,1e-08]
[1763574899525,26.39296846,132.24,132.23,1e-08]
[1763574899728,33.53147104,132.24,132.23,1e-08]
[1763574900547,40.66997362,132.24,132.23,1e-08]
[1763574900961,25.68266288,132.25,132.23,1e-08]
[1763574901129,7.13850258,132.24,132.23,1e-08]
[1763574902375,33.10796516,132.24,132.23,1e-08]
[1763574902868,18.83096,132.24,132.23,1e-08]
[1763574903185,33.53147104,132.24,132.23,1e-08]
[1763574903834,0.71,132.27,132.23,1e-08]
[1763574904039,25.68192854,132.26,132.23,1e-08]
[1763574904359,7.13850258,132.24,132.23,1e-08]
[1763574904930,25.68296846,132.24,132.23,1e-08]
[1763574905165,25.25946258,132.24,132.23,1e-08]
[1763574905743,7.13850258,132.24,132.23,1e-08]
[1763574906045,7.13850258,132.27,132.23,7.84850259]
[1763574906228,7.13850258,132.24,132.23,1e-08]
[1763574906560,18.12096,132.2,132.14,0.2]
[1763574906765,9.78882769,132.19,132.14,0.91]
[1763574906939,9.78882769,132.19,132.14,0.2]
[1763574906940,7.56715853,132.15,132.14,0.2]
[1763574907141,14.70566111,132.15,132.14,0.2]
[1763574907458,14.7052841,132.16,132.14,0.91]
[1763574907631,7.13850258,132.15,132.14,0.91]
[1763574908050,14.70513296,132.16,132.14,0.91]
[1763574908337,14.70337132,132.19,132.15,7.84850258]
[1763574908551,14.70337132,132.19,132.15,9.66850258]
[1763574908749,7.13850258,132.19,132.16,0.71]
[1763574909149,18.12096,132.2,132.16,0.71]
[1763574909355,14.70359209,132.19,132.16,0.71]
[1763574909561,7.13850258,132.18,132.15,1.82]
[1763574909738,7.13850258,132.16,132.14,0.2]
[1763574909941,7.13850258,132.15,132.14,0.2]
[1763574910743,18.12096,132.16,132.14,0.91]
[1763574911266,25.25946258,132.16,132.14,0.2]
[1763574911455,25.25946258,132.16,132.14,0.91]
[1763574911650,32.82611435,132.16,132.14,0.91]
[1763574912049,7.13850258,132.15,132.14,0.2]
[1763574912949,18.12096,132.17,132.14,0.91]
[1763574913270,14.70471504,132.17,132.14,0.91]
[1763574913448,7.13850258,132.16,132.14,0.2]
[1763574913650,7.13850258,132.17,132.14,0.91]
[1763574914244,7.56556916,132.18,132.14,0.2]
[1763574914438,18.12096,132.21,132.15,7.84850258]
[1763574914639,25.25946258,132.19,132.16,0.71]
[1763574914839,11.22177926,132.19,132.16,0.71]
[1763574915167,11.22177926,132.18,132.16,0.71]
[1763574915341,18.12096,132.19,132.16,0.71]
[1763574915543,11.22177926,132.18,132.16,0.71]
[1763574915867,18.12096,132.2,132.14,18.98949178]
[1763574916058,11.22177926,132.18,132.16,0.71]
[1763574916368,29.34273926,132.19,132.16,0.71]
[1763574916574,1.82,132.23,132.17,11.22177926]
[1763574916575,17.35162311,132.23,132.17,11.22177926]
[1763574916780,37.79708424,132.29,132.21,11.22177926]
[1763574916781,0.71,132.27,132.21,11.22177926]
[1763574916950,18.12096,132.25,132.21,13.75177926]
[1763574917145,36.90434079,132.25,132.21,0.71]
[1763574917349,11.22177926,132.26,132.22,11.93177926]
[1763574917561,18.7827262,132.26,132.22,11.93177926]
[1763574917749,7.56094694,132.26,132.23,2.53]
[1763574917964,11.22177926,132.26,132.23,2.53]
[1763574918274,29.34273926,132.26,132.23,2.53]
[1763574918649,7.56046746,132.27,132.24,0.71]
[1763574918848,18.78224672,132.27,132.23,2.53]
[1763574919079,18.78290828,132.26,132.23,1.82]
[1763574919371,37.68507068,132.26,132.23,2.53]
[1763574919546,11.22177926,132.25,132.23,2.53]
[1763574919869,26.46329142,132.26,132.23,2.53]
[1763574919870,37.68507068,132.26,132.23,2.53]
[1763574920172,7.56112902,132.26,132.24,0.71]
[1763574920874,7.56040143,132.27,132.24,0.71]
[1763574921177,11.22177926,132.29,132.25,11.22177926]
[1763574921381,11.22177926,132.29,132.25,11.93177926]
[1763574921554,9.78882769,132.33,132.26,11.93177926]
[1763574921757,0.72,132.33,132.27,1.82]
[1763574922058,11.22177926,132.3,132.27,2.53]
[1763574922461,11.22177926,132.3,132.28,0.71]
[1763574923078,18.78043055,132.3,132.28,0.71]
[1763574923283,18.779943,132.31,132.28,0.71]
[1763574923584,7.55816374,132.31,132.28,0.71]
[1763574923790,37.67496227,132.31,132.28,0.71]
[1763574924087,11.22177926,132.3,132.28,0.71]
[1763574924399,11.22177926,132.34,132.29,11.22177926]
[1763574924691,0.72,132.37,132.33,11.22177926]
[1763574924692,11.22177926,132.37,132.33,11.22177926]
[1763574924861,0.72,132.39,132.33,1.82]
[1763574925063,11.22177926,132.36,132.33,1.82]
[1763574925256,18.77719859,132.36,132.33,1.82]
[1763574925471,18.88546904,132.38,132.33,1.82]
[1763574925472,11.22177926,132.35,132.33,1.82]
[1763574925687,11.22177926,132.34,132.33,1.82]
[1763574926190,11.94177926,132.34,132.33,1.82]
[1763574926363,11.22177926,132.34,132.33,1.82]
[1763574926987,27.16310987,132.36,132.33,1.82]
[1763574927279,18.77807365,132.34,132.33,1.82]
[1763574927488,18.12096,132.37,132.33,2.49]
[1763574927656,11.94177926,132.39,132.34,0.67]
[1763574927657,11.22177926,132.36,132.34,0.67]
[1763574928255,11.22177926,132.35,132.33,1.82]
[1763574928477,11.22177926,132.34,132.26,32.88934137]
[1763574928780,0.72,132.37,132.28,0.67]
[1763574928781,11.22177926,132.3,132.28,0.67]
[1763574929179,18.12096,132.33,132.28,11.89177926]
[1763574929180,25.67825924,132.33,132.28,11.89177926]
[1763574929351,29.34273926,132.34,132.3,11.22177926]
[1763574929561,29.34273926,132.34,132.31,1.82]
[1763574929788,29.34273926,132.34,132.31,2.49]
[1763574929976,29.34273926,132.34,132.32,0.67]
[1763574930176,29.34273926,132.36,132.32,11.89177926]
[1763574930372,30.10838011,132.37,132.32,11.89177926]
[1763574930571,30.10838011,132.37,132.33,0.67]
[1763574930982,11.22177926,132.37,132.33,0.67]
[1763574931173,18.77579043,132.38,132.34,11.22177926]
[1763574931380,18.77579043,132.38,132.33,8.22666032]
[1763574931381,18.77579043,132.38,132.35,1.82]
[1763574931575,37.66081837,132.38,132.35,1.82]
[1763574931779,11.22177926,132.37,132.32,11.89177926]
[1763574931988,11.22177926,132.37,132.3,0.67]
[1763574931989,11.22177926,132.34,132.3,0.67]
[1763574932298,11.22177926,132.34,132.31,1.82]
[1763574932673,11.22177926,132.33,132.31,1.82]
[1763574932991,0.72,132.36,132.31,2.49]
[1763574933181,18.77864467,132.33,132.31,1.82]
[1763574933497,11.22177926,132.32,132.31,1.82]
[1763574935081,11.94177926,132.32,132.28,0.67]
[1763574935278,11.22177926,132.29,132.28,1.82]
[1763574936181,11.22177926,132.31,132.28,2.49]
[1763574936514,11.22177926,132.31,132.29,0.67]
[1763574936674,18.77923468,132.32,132.29,0.67]
[1763574937181,11.22177926,132.33,132.29,11.89177926]
[1763574937591,11.22177926,132.33,132.3,0.67]
[1763574937799,11.22177926,132.33,132.31,1.82]
[1763574938304,7.55743651,132.32,132.31,1.82]
[1763574939212,18.12096,132.36,132.31,21.26973306]
[1763574939367,36.89816607,132.36,132.32,0.67]
[1763574939700,29.34273926,132.36,132.32,0.67]
[1763574939900,29.34273926,132.36,132.31,1.82]
[1763574939901,25.67611562,132.36,132.31,1.82]
[1763574940106,11.22177926,132.34,132.32,0.67]
[1763574940282,7.55686541,132.33,132.32,0.67]
[1763574940486,18.77864467,132.33,132.28,0.67]
[1763574940789,11.22177926,132.32,132.29,2.49]
[1763574940970,11.22177926,132.32,132.3,0.67]
[1763574941698,18.77864467,132.33,132.3,0.67]
[1763574941876,18.77864467,132.33,132.31,1.82]
[1763574942073,18.77864467,132.33,132.3,0.67]
[1763574942303,0.72,132.32,132.31,1.82]
[1763574942469,11.94177926,132.32,132.31,1.82]
[1763574942674,11.94177926,132.32,132.25,18.12096]
[1763574942675,11.94177926,132.32,132.25,0.67]
[1763574942875,11.22177926,132.29,132.26,1.82]
[1763574943089,44.56998894,132.33,132.26,1.82]
[1763574943090,11.22177926,132.28,132.26,1.82]
[1763574943290,11.22177926,132.27,132.25,1.82]
[1763574943491,11.22177926,132.26,132.25,1.82]
[1763574943892,11.22177926,132.27,132.25,1.82]
[1763574944209,25.67991033,132.3,132.26,2.49]
[1763574944508,11.22177926,132.29,132.26,2.49]
[1763574945004,37.67717705,132.3,132.26,2.49]
[1763574945172,7.55870043,132.3,132.27,0.67]
[1763574945381,11.22177926,132.3,132.27,0.67]
[1763574945720,37.67486994,132.31,132.27,0.67]
[1763574945897,11.22177926,132.29,132.26,1.82]
[1763574946207,7.5597218,132.28,132.27,0.67]
[1763574946580,7.55940799,132.29,132.27,0.67]
[1763574947286,18.77921577,132.32,132.28,1.82]
[1763574947484,37.67280706,132.32,132.28,2.49]
[1763574947705,11.22177926,132.31,132.28,1.82]
[1763574947884,11.22177926,132.3,132.28,1.82]
[1763574948077,11.22177926,132.3,132.26,0.67]
[1763574948295,18.78061605,132.3,132.28,1.82]
[1763574948879,11.22177926,132.29,132.28,1.82]
[1763574949684,26.45528425,132.3,132.25,34.45739665]
[1763574949884,11.22177926,132.29,132.27,1.82]
[1763574950609,7.5597218,132.28,132.27,1.82]
[1763574950778,7.55937361,132.29,132.27,1.82]
[1763574950973,18.78115287,132.29,132.27,1.82]
[1763574951599,11.94177926,132.28,132.27,1.82]
[1763574951804,11.94177926,132.28,132.26,1.82]
[1763574952036,11.94177926,132.28,132.22,0.66]
[1763574952037,11.22177926,132.27,132.22,0.66]
[1763574952250,11.22177926,132.25,132.23,1.82]
[1763574952410,7.56200846,132.24,132.23,1.82]
[1763574952608,18.78378772,132.24,132.23,1.82]
[1763574953307,18.78378772,132.24,132.23,24.9278985]
[1763574953630,18.78378772,132.24,132.23,1.82]
[1763574954104,7.56200846,132.24,132.23,1.82]
[1763574954306,11.22177926,132.25,132.23,1.82]
[1763574954837,18.78285125,132.26,132.23,2.48]
[1763574955131,7.56107199,132.26,132.23,1.82]
[1763574955302,7.56107199,132.26,132.24,0.66]
[1763574956038,18.12096,132.29,132.24,11.88177926]
[1763574956331,11.22177926,132.28,132.24,11.88177926]
[1763574956631,7.56029333,132.27,132.25,0.66]
[1763574956814,18.78207259,132.27,132.26,1.82]
[1763574957213,37.68280593,132.27,132.26,1.82]
[1763574957536,11.22177926,132.27,132.26,1.82]
[1763574958219,11.94177926,132.27,132.26,1.82]
[1763574958532,18.12096,132.25,132.21,0.66]
[1763574958752,18.12096,132.25,132.22,1.82]
[1763574958947,1.82,132.29,132.22,1.82]
[1763574958948,18.12096,132.29,132.23,11.22177926]
[1763574959231,11.22177926,132.28,132.24,11.22177926]
[1763574959410,11.22177926,132.26,132.25,1.82]
[1763574959731,11.22177926,132.27,132.25,1.82]
[1763574960312,11.22177926,132.26,132.25,1.82]
[1763574960834,18.78264422,132.26,132.25,1.82]
[1763574961212,38.40480662,132.26,132.23,1.82]
[1763574961544,11.22177926,132.24,132.23,1.82]
[1763574962123,11.94177926,132.24,132.21,1.82]
[1763574962314,11.22177926,132.22,132.21,1.82]
[1763574962845,18.78493158,132.22,132.21,1.82]
[1763574963637,2.54,132.27,132.21,13.70177926]
[1763574963946,11.22177926,132.25,132.22,0.66]
[1763574964123,7.56086496,132.26,132.22,11.88177926]
[1763574964320,18.78224064,132.27,132.23,11.22177926]
[1763574964511,37.68297398,132.27,132.24,1.82]
[1763574964711,37.68297398,132.27,132.24,2.48]
[1763574965210,18.78224064,132.27,132.24,1.82]
[1763574965435,26.46119472,132.27,132.24,2.48]
[1763574965740,11.22177926,132.26,132.24,2.48]
[1763574966234,37.68297398,132.27,132.24,2.48]
[1763574966449,18.78224064,132.27,132.24,2.48]
[1763574966740,37.68101682,132.28,132.25,0.66]
[1763574967028,11.22177926,132.27,132.24,2.48]
[1763574967235,0.72,132.26,132.2,73.32177926]
[1763574967543,11.22177926,132.24,132.21,2.48]
[1763574967906,18.12096,132.27,132.21,2.48]
[1763574967907,11.22177926,132.25,132.22,0.66]
[1763574968109,11.22177926,132.26,132.22,0.66]
[1763574968310,18.12096,132.27,132.23,11.22177926]
[1763574968619,37.68101682,132.28,132.24,2.48]
[1763574969226,7.55993306,132.28,132.25,11.88177926]
[1763574969424,0.72,132.31,132.25,11.88177926]
[1763574969639,11.22177926,132.29,132.25,11.88177926]
[1763574970025,11.22177926,132.29,132.25,0.66]
[1763574970216,11.22177926,132.27,132.23,11.22177926]
[1763574970417,11.22177926,132.27,132.23,0.66]
[1763574970614,0.72,132.28,132.24,1.82]
[1763574970838,11.22177926,132.26,132.24,1.82]
[1763574971038,11.22177926,132.26,132.24,2.48]
[1763574971227,18.78279387,132.26,132.24,2.48]
[1763574971540,7.56101461,132.26,132.24,2.48]
[1763574971726,18.78279387,132.26,132.24,2.48]
[1763574971935,18.78207259,132.27,132.24,2.48]
[1763574972119,38.51289493,132.3,132.25,0.66]
[1763574972120,11.22177926,132.29,132.25,0.66]
[1763574972322,25.67980212,132.3,132.25,11.88177926]
[1763574972640,18.78062138,132.3,132.25,11.88177926]
[1763574972820,18.78062138,132.3,132.26,0.66]
[1763574973146,19.50062138,132.3,132.27,1.82]
[1763574973344,38.39706884,132.3,132.27,1.82]
[1763574973514,26.45528958,132.3,132.27,1.82]
[1763574973716,11.22177926,132.29,132.27,1.82]
[1763574974037,44.57398697,132.31,132.27,1.82]
[1763574974342,11.22177926,132.29,132.27,1.82]
[1763574974545,44.57398697,132.31,132.23,18.12096]
[1763574974546,11.22177926,132.28,132.23,0.66]
[1763574974726,11.22177926,132.27,132.26,1.82]
[1763574974924,7.15213486,132.28,132.26,1.82]
[1763574975219,7.15213486,132.29,132.27,0.66]
[1763574975424,7.5597218,132.28,132.26,1.82]
[1763574975627,7.5597218,132.28,132.26,2.48]
[1763574975821,33.61116116,132.28,132.26,1.82]
[1763574976032,33.61116116,132.28,132.26,2.48]
[1763574976237,33.61116116,132.28,132.26,1.82]
[1763574976545,7.15213486,132.29,132.26,1.82]
[1763574976751,0.72,132.3,132.27,0.66]
[1763574976752,7.15213486,132.3,132.27,0.66]
[1763574976936,7.15213486,132.29,132.26,63.92]
[1763574977134,7.15213486,132.28,132.26,63.92]
[1763574977546,14.71242819,132.27,132.26,63.92]
[1763574977838,14.71205235,132.28,132.26,1.82]
[1763574978149,7.55991749,132.28,132.27,0.66]
[1763574978348,14.71139695,132.29,132.27,0.66]
[1763574978550,14.71139695,132.29,132.26,1.82]
[1763574978723,14.71139695,132.29,132.26,2.48]
[1763574979152,33.60927282,132.29,132.26,2.48]
[1763574979353,14.71139695,132.29,132.26,2.48]
[1763574979547,7.15213486,132.28,132.26,1.82]
[1763574979732,7.15213486,132.28,132.24,62.76]
[1763574980052,7.15213486,132.28,132.25,2.52]
[1763574980250,7.15213486,132.27,132.25,1.82]
[1763574980450,7.15213486,132.26,132.25,1.82]
[1763574980635,7.15213486,132.26,132.21,0.7]
[1763574980835,7.15213486,132.23,132.22,1.82]
[1763574981042,7.15213486,132.24,132.22,1.82]
[1763574981231,18.12096,132.26,132.23,0.7]
[1763574981551,7.56143667,132.25,132.23,0.7]
[1763574982244,14.71325326,132.26,132.23,0.7]
[1763574982956,18.12096,132.28,132.24,7.15213486]
[1763574983263,18.12096,132.28,132.25,7.15213486]
[1763574983440,18.12096,132.28,132.25,8.97213486]
[1763574983625,7.55915035,132.29,132.26,0.7]
[1763574984451,33.60916108,132.29,132.26,0.7]
[1763574985055,7.15213486,132.28,132.25,1.82]
[1763574985354,7.15213486,132.27,132.25,1.82]
[1763574985647,14.71299982,132.26,132.25,1.82]
[1763574987236,7.56086496,132.26,132.25,1.82]
[1763574987443,14.71185666,132.28,132.25,1.82]
[1763574987647,33.61116116,132.28,132.25,1.82]
[1763574987849,8.2397218,132.28,132.25,1.82]
[1763574988155,7.15213486,132.27,132.25,1.82]
[1763574988558,27.1390263,132.28,132.25,1.82]
[1763574988752,7.15213486,132.27,132.25,1.82]
[1763574989151,7.15213486,132.27,132.24,0.68]
[1763574989342,7.15213486,132.27,132.25,1.82]
[1763574989850,7.56086496,132.26,132.25,1.82]
[1763574990754,7.56086496,132.26,132.2,25.95309486]
[1763574990755,34.29516222,132.26,132.2,25.95309486]
[1763574990962,26.46302736,132.26,132.21,2.5]
[1763574991147,7.15213486,132.25,132.21,2.5]
[1763574991356,7.15213486,132.24,132.21,1.82]
[1763574991553,7.15213486,132.24,132.21,2.5]
[1763574991732,0.68,132.25,132.21,2.5]
[1763574991733,18.9021624,132.26,132.22,0.68]
[1763574991932,33.61716321,132.25,132.22,0.68]
[1763574992166,26.46502835,132.25,132.22,0.68]
[1763574992371,14.71357153,132.25,132.22,0.68]
[1763574994069,7.15213486,132.26,132.22,0.68]
[1763574994364,14.71294534,132.27,132.22,77.49521446]
[1763574994659,7.15213486,132.3,132.25,7.15213486]
[1763574994861,7.15213486,132.3,132.26,1.82]
[1763574995169,7.83213486,132.3,132.26,2.5]
[1763574995348,7.15213486,132.29,132.26,2.5]
[1763574995542,26.45395809,132.31,132.26,2.5]
[1763574995860,14.71185666,132.28,132.26,1.82]
[1763574996058,7.15213486,132.27,132.26,1.82]
[1763574996744,7.83213486,132.27,132.21,18.12096]
[1763574996936,7.15213486,132.24,132.21,0.68]